bitfinex-derivatives/quotes_SOLF0:USTF0_20250224
["timestamp","ask_amount","ask_price","bid_price","bid_amount"]
[1740435891939,0.05136232,146.61,146.56,0.04380757]
[1740435892734,68.32136232,146.61,146.56,0.04380757]
[1740435893037,0.05136232,146.61,146.56,0.04380757]
[1740435893939,6.8232,146.57,146.56,7.57e-06]
[1740435894234,7.12069024,146.88,146.56,15.80000757]
[1740435894435,68.27,146.75,146.56,15.80000757]
[1740435894629,68.27,146.75,146.56,18.8]
[1740435894829,12.1827,146.87,146.57,21.90453571]
[1740435895138,0.05051967,146.67,146.64,0.05220628]
[1740435895442,6.8148,146.75,146.65,6.8194]
[1740435895640,0.04730005,146.67,146.65,6.8194]
[1740435895840,0.04730005,146.67,146.64,178.74840489]
[1740435896042,12.1827,146.87,146.65,6.819]
[1740435896043,6.815,146.75,146.65,6.819]
[1740435896242,68.27,146.76,146.64,178.75039934]
[1740435896438,12.1827,146.87,146.64,178.7]
[1740435896638,68.27,146.81,146.65,1.36379133]
[1740435896834,68.27,146.8,146.65,1.36379133]
[1740435897336,0.05056393,146.74,146.71,0.05130842]
[1740435897745,4.1673,146.86,146.68,15.8]
[1740435898043,15.8,146.94,146.71,0.04650402]
[1740435898246,12.2295,146.93,146.71,0.04650402]
[1740435898443,12.2295,146.93,146.68,18.8]
[1740435898741,12.2295,146.93,146.69,1.36341945]
[1740435899139,6.8125,146.8,146.74,0.04953286]
[1740435899343,12.2295,146.93,146.74,0.04953286]
[1740435899344,0.0442482,146.77,146.74,0.04953286]
[1740435900544,4.82e-05,146.77,146.74,0.04953286]
[1740435900842,13.6095,146.97,146.74,0.04953286]
[1740435901038,68.27,146.88,146.77,6.8138]
[1740435901233,68.27,146.87,146.69,53.87456439]
[1740435901435,68.27,146.87,146.7,5.29902651]
[1740435901740,13.6095,146.97,146.71,1.36323359]
[1740435901944,0.04996442,146.8,146.77,0.05103285]
[1740435902144,6.8111,146.83,146.78,178.5]
[1740435902340,13.6078,146.99,146.78,178.5]
[1740435902545,51.5792456,146.87,146.78,178.5]
[1740435902946,13.6078,146.99,146.78,178.5]
[1740435903142,51.5792456,146.88,146.78,185.3131]
[1740435903348,51.5792456,146.88,146.87,3.382e-05]
[1740435903651,19.38002214,147.0,146.83,6.8107]
[1740435903652,3.62002214,147.0,146.83,6.8107]
[1740435903845,51.5792456,146.91,146.78,178.5]
[1740435904048,51.5792456,146.93,146.78,181.5]
[1740435904245,51.5792456,146.93,146.85,6.8101]
[1740435904246,6.808,146.9,146.85,6.8101]
[1740435904444,0.04356791,146.87,146.84,0.0502983]
[1740435904646,15.76,147.04,146.8,15.76]
[1740435904853,51.5792456,146.98,146.81,8.063]
[1740435905145,51.5792456,146.95,146.81,9.42530502]
[1740435905345,6.8077,146.91,146.85,6.8098]
[1740435905644,2.8715,146.91,146.81,9.42530502]
[1740435905854,13.6019,147.05,146.81,9.42530502]
[1740435906047,3.9203,147.04,146.81,9.42530502]
[1740435906346,6.8112,146.83,146.81,5.33590502]
[1740435906545,6.8112,146.83,146.81,3.9736]
[1740435906751,15.76,146.99,146.81,3.9736]
[1740435906939,51.5792456,146.91,146.81,3.9736]
[1740435907139,51.5792456,146.9,146.81,3.9736]
[1740435907343,51.63137032,146.87,146.85,1.471e-05]
[1740435907546,51.5792456,146.87,146.78,178.5]
[1740435907748,3.968,146.98,146.78,178.5]
[1740435907944,6.8129,146.79,146.78,178.5]
[1740435908246,51.5792456,146.85,146.78,178.5]
[1740435908449,6.8123,146.81,146.78,178.5]
[1740435908644,0.04992891,146.83,146.8,0.04417097]
[1740435908849,13.6106,146.96,146.75,3.9707]
[1740435909047,0.05200257,146.83,146.8,0.04383502]
[1740435909242,51.5792456,146.91,146.75,3.9707]
[1740435909443,8.0151,146.95,146.76,1.36276914]
[1740435909649,51.5792456,146.92,146.76,1.36276914]
[1740435909846,51.5792456,146.92,146.77,20.54]
[1740435910144,8.0151,146.95,146.78,1.36258345]
[1740435910344,9.649e-05,146.88,146.85,0.04542412]
[1740435910547,51.5792456,146.98,146.86,178.3]
[1740435910750,51.5792456,146.99,146.86,178.3]
[1740435911147,12.3712,147.08,146.78,1.36258345]
[1740435911347,51.5792456,146.91,146.79,3.8581]
[1740435911543,0.04635377,146.94,146.92,9.385e-05]
[1740435911745,6.8091,146.88,146.82,6.8112]
[1740435911949,51.5792456,146.92,146.79,3.8581]
[1740435912256,51.5792456,146.91,146.79,3.8581]
[1740435912457,51.5792456,146.92,146.82,6.8114]
[1740435912748,3.71217815,146.98,146.79,3.8581]
[1740435912950,0.05188,146.88,146.86,0.0455277]
[1740435913147,20.3942,147.12,146.87,178.22]
[1740435913355,3.9138,147.06,146.87,178.22]
[1740435914255,13.6029,147.04,146.87,167.9946]
[1740435914447,6.8051,146.96,146.95,2.979e-05]
[1740435914848,15.74,146.98,146.8,3.8241]
[1740435915150,3.9138,147.06,146.8,3.8241]
[1740435915355,15.72,147.02,146.8,3.8241]
[1740435915554,6.8055,146.96,146.84,6.8102]
[1740435915851,0.04446016,146.94,146.8,3.8241]
[1740435916157,15.72,147.02,146.89,0.04540433]
[1740435916455,0.0513489,146.88,146.8,3.8241]
[1740435916655,6.8075,146.91,146.81,6.8118]
[1740435916957,15.72,147.02,146.83,0.04368064]
[1740435917358,15.72,147.05,146.8,3.8241]
[1740435917561,3.9138,147.06,146.8,197.8241]
[1740435918051,0.04877885,146.94,146.92,0.05155494]
[1740435918252,3.9158,147.05,146.92,178.25155494]
[1740435918457,6.8019,147.03,146.95,6.8054]
[1740435918648,3.9158,147.05,146.92,178.2]
[1740435919250,0.05182878,147.0,146.92,178.2]
[1740435919458,0.05182878,147.0,146.97,0.04766805]
[1740435920858,8.0931,147.17,146.97,0.04766805]
[1740435921057,4.0383,147.13,146.97,0.04766805]
[1740435921356,4.0383,147.13,146.92,181.2]
[1740435921357,6.7985,147.12,146.92,181.2]
[1740435921554,4.0383,147.13,146.93,1.3611924]
[1740435921758,4.0383,147.13,146.93,195.3611924]
[1740435922055,4.0383,147.13,147.02,0.04469916]
[1740435922451,10.8364,147.13,146.94,1.18751772]
[1740435922657,10.8364,147.13,146.95,1.36100714]
[1740435922859,4.0383,147.13,146.95,1.36100714]
[1740435923458,0.04731959,147.05,147.03,0.04562359]
[1740435923955,6.7997,147.09,146.95,1.36100714]
[1740435924164,0.04745916,147.05,147.03,0.0493663]
[1740435924661,4.0383,147.13,147.02,28.28458465]
[1740435924960,8.0931,147.17,147.03,0.05005618]
[1740435925155,8.0931,147.17,147.02,28.28458465]
[1740435926159,6.7993,147.1,147.08,0.0457091]
[1740435926362,0.04900885,147.11,147.08,0.0457091]
[1740435926552,8.0931,147.17,146.98,28.28458465]
[1740435926759,6.8001,147.09,147.03,6.8022]
[1740435927064,6.8001,147.09,147.08,0.05142339]
[1740435927360,6.8001,147.09,147.03,6.8022]
[1740435927559,0.04559944,147.1,147.07,0.04458698]
[1740435927761,0.04559944,147.1,146.98,28.28458465]
[1740435927959,23.7931,147.17,146.98,28.28458465]
[1740435928557,15.7,147.16,147.01,28.28458465]
[1740435928957,0.04984972,147.1,147.07,2.228e-05]
[1740435929357,17.05906496,147.16,147.01,28.28458465]
[1740435929761,14.8892,147.17,147.01,28.28458465]
[1740435929962,8.0931,147.17,147.02,4.1853]
[1740435930163,8.0931,147.17,147.03,178.02]
[1740435930365,8.0931,147.17,147.08,0.04813634]
[1740435930760,8.0931,147.17,147.03,178.02]
[1740435931062,15.7,147.31,147.06,28.28458465]
[1740435931258,8.0777,147.3,147.06,28.28458465]
[1740435931658,0.05036078,147.19,147.17,0.04318713]
[1740435932057,0.05036078,147.19,147.06,28.28458465]
[1740435932058,8.0777,147.3,147.06,28.28458465]
[1740435932255,0.04741179,147.19,147.17,0.0438811]
[1740435932459,6.7966,147.16,147.08,6.8001]
[1740435932658,3.9078,147.18,147.06,28.28458465]
[1740435932858,20.96668028,147.18,147.05,52.26663218]
[1740435933063,5.44447261,147.17,147.05,3.97783218]
[1740435933668,0.04796596,147.12,147.05,3.97783218]
[1740435933862,0.04796596,147.12,147.11,84.38548329]
[1740435934062,0.04796596,147.12,147.11,28.04668329]
[1740435934262,6.74336156,147.11,147.1,79.3601988]
[1740435934467,7.9684024,147.11,147.1,68.2046988]
[1740435935160,0.04796596,147.12,147.1,68.2046988]
[1740435936165,0.04796596,147.12,147.09,0.04428245]
[1740435937368,6.7992,147.11,147.09,0.04428245]
[1740435937670,0.04796596,147.12,147.09,0.04428245]
[1740435939167,6.7993,147.1,147.09,0.04428245]
[1740435939872,34.68993494,147.1,147.09,0.04428245]
[1740435940469,41.62629799,147.1,147.09,0.04428245]
[1740435940767,41.62629799,147.1,147.09,8.245e-05]
[1740435940966,36.05138337,147.1,146.87,8.774]
[1740435941162,8.16074843,147.09,146.91,135.94008245]
[1740435941363,8.16074843,147.08,146.87,4.6828]
[1740435941560,8.16074843,147.07,146.94,135.94008245]
[1740435941765,6.93636305,147.06,146.94,135.94008245]
[1740435941970,27.89063494,147.1,146.94,135.94008245]
[1740435942266,27.89063494,147.1,146.88,4.1561]
[1740435942267,0.04651392,147.01,146.99,0.02354212]
[1740435942464,0.04651392,147.01,146.95,135.94008245]
[1740435942670,15.68,147.02,146.88,10.9654]
[1740435942962,15.68,147.02,146.95,135.94008245]
[1740435943166,15.68,147.02,146.97,135.94008245]
[1740435943563,0.0482901,147.01,146.98,0.04711042]
[1740435943867,0.0482901,147.01,146.98,135.98719287]
[1740435944270,0.0482901,147.01,147.0,135.94008245]
[1740435944571,27.99361753,147.04,147.0,135.94008245]
[1740435944764,74.64964675,147.06,147.03,135.94008245]
[1740435944967,74.64964675,147.06,147.05,135.94008245]
[1740435945169,68.29684675,147.06,147.05,135.94008245]
[1740435945977,68.29684675,147.06,147.05,142.74168245]
[1740435946270,68.29684675,147.06,147.05,135.94008245]
[1740435946770,68.29684675,147.06,147.04,0.04452795]
[1740435946974,0.04454842,147.07,147.04,0.04452795]
[1740435947269,0.04454842,147.07,146.82,15.68]
[1740435947571,15.68,147.11,146.88,4.1981]
[1740435947871,15.68,147.11,146.98,135.94008245]
[1740435948070,15.68,147.11,146.97,135.94008245]
[1740435948071,10.8244,147.1,146.97,135.94008245]
[1740435948267,4.025,147.1,147.03,0.04618657]
[1740435948471,0.0458131,147.06,146.98,135.94008245]
[1740435948774,6.7998,147.09,146.95,6.8059]
[1740435949070,4.025,147.1,146.95,135.94008245]
[1740435949268,6.8006,147.08,146.95,135.94008245]
[1740435949672,0.05094888,147.03,147.0,0.04654819]
[1740435949969,13.37840549,147.1,146.68,128.29028873]
[1740435949970,1.22297539,147.09,146.68,128.29028873]
[1740435950167,6.872,146.98,146.68,115.90554761]
[1740435950366,40.97,146.95,146.74,135.94008245]
[1740435950565,40.97,146.93,146.69,135.94008245]
[1740435950771,40.97,146.91,146.68,116.07898653]
[1740435950965,40.97,146.89,146.68,116.07898653]
[1740435951162,0.05204025,146.82,146.68,93.06154761]
[1740435951366,389.50347214,146.81,146.68,93.04024761]
[1740435951563,2.92491718,146.8,146.68,93.01434761]
[1740435951769,2.92491718,146.79,146.68,93.01434761]
[1740435951969,1.70347214,146.78,146.68,228.95443006]
[1740435952176,15.68,146.81,146.72,135.94008245]
[1740435952365,15.68,146.81,146.72,0.04317823]
[1740435952565,153.14805495,146.84,146.68,96.86084761]
[1740435952566,0.04959639,146.78,146.69,3.9822]
[1740435952869,0.04959639,146.78,146.75,0.04312583]
[1740435953074,15.68,146.85,146.77,135.94008245]
[1740435953266,0.0460836,146.75,146.69,3.9822]
[1740435953467,15.68,146.85,146.82,135.94008245]
[1740435953863,15.68,146.85,146.69,3.9822]
[1740435954067,9.35340549,146.88,146.84,135.94008245]
[1740435954367,9.35340549,146.88,146.87,135.94008245]
[1740435954563,111.97447013,146.91,146.87,135.94008245]
[1740435954764,111.97447013,146.91,146.9,135.94008245]
[1740435955067,33.84142393,146.91,146.9,135.94008245]
[1740435955263,0.04516126,146.92,146.9,135.94008245]
[1740435955468,0.04516126,146.92,146.91,135.94008245]
[1740435955868,9.26683842,146.98,146.91,135.94008245]
[1740435956069,9.26683842,146.98,146.93,135.94008245]
[1740435956268,0.04479557,146.93,146.92,135.94008245]
[1740435956468,0.04479557,146.93,146.9,0.04631021]
[1740435956671,9.26683842,146.98,146.9,135.94008245]
[1740435956871,0.04792833,146.93,146.9,135.98910262]
[1740435957174,0.04792833,146.93,146.9,0.04902017]
[1740435957375,0.04792833,146.93,146.92,135.94008245]
[1740435957573,0.04792833,146.93,146.9,0.04902017]
[1740435958071,0.04792833,146.93,146.71,179.71765495]
[1740435958276,0.04792833,146.93,146.84,135.94008245]
[1740435958470,4.0007,146.97,146.84,135.94008245]
[1740435958676,1.36091453,146.96,146.71,179.71765495]
[1740435958877,1.36091453,146.96,146.81,135.94008245]
[1740435959374,0.04537633,146.9,146.87,0.05199004]
[1740435959576,0.04537633,146.9,146.83,135.94008245]
[1740435959775,1.36091453,146.96,146.89,135.94008245]
[1740435959971,1.36091453,146.96,146.9,135.94008245]
[1740435960173,1.36091453,146.96,146.91,135.94008245]
[1740435960378,1.36091453,146.96,146.9,135.94008245]
[1740435960575,1.36091453,146.96,146.73,15.68]
[1740435960778,1.36091453,146.96,146.88,135.94008245]
[1740435960979,0.04514966,146.94,146.92,0.04810718]
[1740435961573,0.04514966,146.94,146.93,135.94008245]
[1740435962470,1.36091453,146.96,146.93,135.94008245]
[1740435962675,4.1143,147.0,146.95,135.94008245]
[1740435962884,4.1143,147.0,146.96,135.94008245]
[1740435963581,4.1143,147.0,146.97,0.049997]
[1740435963779,0.05017491,146.99,146.97,113.19722714]
[1740435964184,3.9503,147.09,146.98,113.14723014]
[1740435964385,3.9503,147.09,147.03,113.14723014]
[1740435964689,0.04847454,146.99,146.84,193.86]
[1740435964886,6.8004,147.08,147.01,113.14723014]
[1740435965191,0.04382404,147.07,147.0,113.14723014]
[1740435965383,0.04382404,147.07,146.99,113.14723014]
[1740435965583,19.6303,147.09,146.98,113.14723014]
[1740435965986,6.8029,147.03,146.88,6.8094]
[1740435966189,6.8029,147.03,146.95,113.14723014]
[1740435966391,6.8041,147.0,146.92,113.14723014]
[1740435966589,20.99001174,147.09,146.92,113.14723014]
[1740435966888,15.68,147.08,146.84,178.18]
[1740435967084,6.8027,147.03,146.97,113.14723014]
[1740435967288,5.31001174,147.09,146.98,113.14723014]
[1740435967484,0.0507658,147.01,146.99,0.05129785]
[1740435967886,20.99001174,147.09,147.0,113.14723014]
[1740435968090,20.99001174,147.09,147.01,113.14723014]
[1740435968290,0.05111692,147.06,147.01,113.14723014]
[1740435968585,0.05111692,147.06,147.04,0.04601937]
[1740435969086,0.05060938,147.06,147.04,0.04588546]
[1740435969886,0.05060938,147.06,147.04,113.1931156]
[1740435970278,0.05060938,147.06,147.05,113.14723014]
[1740435970682,0.05060938,147.06,147.04,0.04588546]
[1740435971186,0.05060938,147.06,147.05,113.14723014]
[1740435971487,194.0,147.18,147.05,113.14723014]
[1740435971687,8.1842,147.19,147.12,113.14723014]
[1740435971886,15.66,147.2,147.14,113.14723014]
[1740435972189,15.66,147.2,147.15,113.14723014]
[1740435972387,80.13315239,147.28,146.97,198.64]
[1740435972594,80.13315239,147.28,147.19,113.14723014]
[1740435972987,80.13315239,147.28,147.12,6.798]
[1740435973286,95.79315239,147.28,147.19,113.14723014]
[1740435973487,0.04615473,147.21,147.04,1.53463571]
[1740435973685,0.04615473,147.21,147.19,113.19408274]
[1740435973890,95.79315239,147.28,147.04,1.53463571]
[1740435973891,0.04668401,147.14,147.04,1.53463571]
[1740435974089,95.79315239,147.28,147.14,113.14723014]
[1740435974492,4.41215217,147.27,147.14,113.14723014]
[1740435974995,1.35814206,147.26,147.04,1.53463571]
[1740435975187,0.0509891,147.22,147.11,97.88933014]
[1740435975392,1.35814206,147.26,147.11,97.88933014]
[1740435975695,1.35814206,147.26,147.14,97.88933014]
[1740435975885,4.41595589,147.25,147.15,97.88933014]
[1740435976085,4.41595589,147.25,147.16,97.88933014]
[1740435976297,4.41595589,147.25,147.17,97.88933014]
[1740435976593,0.05116584,147.22,147.21,97.88933014]
[1740435976997,8.0791,147.31,147.21,97.88933014]
[1740435977293,6.7923,147.25,147.24,97.88933014]
[1740435977493,6.7923,147.25,147.22,97.88933014]
[1740435977790,6.7923,147.25,147.23,97.93462642]
[1740435977987,3.9138,147.31,147.23,97.93462642]
[1740435978186,3.9138,147.31,147.11,178.02]
[1740435978187,0.04304275,147.25,147.11,178.02]
[1740435978387,3.9138,147.31,147.23,97.88933014]
[1740435978890,0.04344631,147.28,147.11,178.02]
[1740435979092,0.04344631,147.28,147.26,0.05074913]
[1740435979297,4.0722,147.33,147.11,178.02]
[1740435979298,15.64,147.33,147.25,97.88933014]
[1740435979596,0.04382924,147.28,147.26,0.04536037]
[1740435979791,6.7914,147.27,147.26,0.04536037]
[1740435980995,6.83543173,147.28,147.26,97.93469051]
[1740435981188,0.04433173,147.28,147.27,97.88933014]
[1740435981391,19.5285,147.37,147.27,97.88933014]
[1740435981592,19.5285,147.37,147.28,97.88933014]
[1740435981793,451.8665596,147.45,147.29,97.88933014]
[1740435981996,4.0818,147.39,147.32,97.88933014]
[1740435982198,4.0818,147.39,147.33,97.88933014]
[1740435982491,6.7887,147.33,147.32,97.88933014]
[1740435982696,0.04512652,147.37,147.35,8.664e-05]
[1740435982996,15.64,147.4,147.31,97.88933014]
[1740435983193,15.64,147.4,147.33,97.88933014]
[1740435983797,15.64,147.4,147.35,97.88933014]
[1740435983998,0.04996395,147.38,147.35,97.93926101]
[1740435984199,0.04996395,147.38,147.36,97.88933014]
[1740435984398,6.7868,147.37,147.36,97.88933014]
[1740435984590,0.04996395,147.38,147.35,0.04993087]
[1740435984791,0.04996395,147.38,147.35,3.087e-05]
[1740435984994,6.7873,147.36,147.35,97.88936101]
[1740435985191,15.64,147.4,147.37,97.88933014]
[1740435985395,6.7868,147.37,147.36,97.88933014]
[1740435985801,15.64,147.4,147.35,3.087e-05]
[1740435986101,0.04802325,147.38,147.36,97.88933014]
[1740435986402,6.7873,147.36,147.35,3.087e-05]
[1740435988199,10.7582,147.36,147.35,3.087e-05]
[1740435988506,12.11542041,147.36,147.35,3.087e-05]
[1740435988697,12.11542041,147.36,147.11,177.76]
[1740435988698,6.7954,147.19,147.11,177.76]
[1740435988903,13.5775,147.33,147.17,86.67206101]
[1740435988904,15.62,147.27,147.17,86.67206101]
[1740435989100,15.62,147.27,147.16,86.67206101]
[1740435989299,6.7952,147.19,147.15,75.84106101]
[1740435989804,12.1738,147.26,147.04,1.53463571]
[1740435990002,0.04287213,147.18,147.16,0.04361734]
[1740435990304,6.7924,147.25,147.2,75.84106101]
[1740435990505,8.0264,147.26,147.2,75.84106101]
[1740435990705,8.0264,147.26,147.16,0.04975081]
[1740435991004,0.04468905,147.24,147.2,0.04382656]
[1740435991701,0.04468905,147.24,147.2,75.88488757]
[1740435991901,0.04468905,147.24,147.21,75.84106101]
[1740435992103,0.04468905,147.24,147.2,0.04382656]
[1740435993206,0.04468905,147.24,147.21,75.84106101]
[1740435993401,0.04468905,147.24,147.2,0.04382656]
[1740435993598,0.04468905,147.24,147.2,75.88488757]
[1740435993801,0.04468905,147.24,147.2,0.04382656]
[1740435994011,6.7942,147.21,147.2,0.04382656]
[1740435994309,0.04468905,147.24,147.2,75.88488757]
[1740435994498,6.7936,147.23,147.2,0.04382656]
[1740435995302,6.7936,147.23,147.21,75.84106101]
[1740435996003,6.7936,147.23,147.22,75.84106101]
[1740435996207,6.7936,147.23,147.21,75.84106101]
[1740435996401,6.7936,147.23,147.2,0.04382656]
[1740435996602,0.04468905,147.24,147.22,75.84106101]
[1740435997207,0.04468905,147.24,147.23,75.84106101]
[1740435999006,0.04468905,147.24,147.2,0.04382656]
[1740435999007,194.0,147.44,147.2,0.04382656]
[1740435999204,15.62,147.39,147.3,75.84106101]
[1740435999410,202.088,147.44,147.32,75.84106101]
[1740435999704,202.088,147.44,147.35,75.84106101]
[1740435999705,15.62,147.42,147.35,75.84106101]
[1740436000205,0.04450891,147.4,147.37,75.89094368]
[1740436000410,23.708,147.44,147.36,75.84106101]
[1740436000607,0.04518358,147.4,147.39,75.84106101]
[1740436000809,0.04518358,147.4,147.37,0.04832339]
[1740436001012,19.7905,147.48,147.39,75.84106101]
[1740436001309,19.7905,147.48,147.41,75.84106101]
[1740436001510,6.7836,147.44,147.42,75.89298091]
[1740436001707,15.6,147.48,147.46,75.84106101]
[1740436001902,0.0487538,147.44,147.42,0.05039707]
[1740436002207,6.7826,147.47,147.45,75.84106101]
[1740436002405,6.7826,147.47,147.46,75.84106101]
[1740436002711,6.7827,147.46,147.45,75.84106101]
[1740436003010,6.7827,147.46,147.45,75.892342]
[1740436003604,6.83094529,147.47,147.45,75.892342]
[1740436004110,6.83094529,147.47,147.46,75.84106101]
[1740436004311,6.7827,147.46,147.45,0.05128099]
[1740436004703,6.7827,147.46,147.45,75.892342]
[1740436004909,6.7827,147.46,147.45,0.05128099]
[1740436005107,6.7827,147.46,147.45,75.892342]
[1740436005503,6.7827,147.46,147.45,0.05128099]
[1740436006213,6.7827,147.46,147.45,8.099e-05]
[1740436007411,14.9811,147.46,147.45,8.099e-05]
[1740436007913,18.9167,147.46,147.45,8.099e-05]
[1740436008313,20.13990129,147.46,147.45,8.099e-05]
[1740436008503,25.88815418,147.46,147.45,8.099e-05]
[1740436009104,27.58511836,147.46,147.45,8.099e-05]
[1740436009709,26.36191707,147.46,147.45,8.099e-05]
[1740436009909,27.58617504,147.46,147.45,8.099e-05]
[1740436010407,6.7924,147.25,147.18,27.75699388]
[1740436010905,15.58,147.34,147.24,75.841142]
[1740436011107,15.58,147.34,147.28,75.841142]
[1740436011512,0.0472986,147.32,147.3,1.399e-05]
[1740436012203,6.7896,147.31,147.3,1.399e-05]
[1740436013812,11.20659838,147.31,147.3,1.399e-05]
[1740436014213,12.9050241,147.31,147.18,16.20710787]
[1740436014406,3.05619897,147.3,147.18,46.00454987]
[1740436014610,3.05629115,147.29,147.08,27.93139678]
[1740436014804,6.7935,147.23,147.16,46.00454987]
[1740436015006,28.06529838,147.22,147.16,46.00454987]
[1740436015308,28.06529838,147.22,147.08,27.93139678]
[1740436015510,4.41699838,147.21,147.16,46.00454987]
[1740436015914,0.04454746,147.2,147.08,27.93139678]
[1740436016114,0.04454746,147.2,147.17,0.04411538]
[1740436016413,4.41699838,147.21,147.19,46.00454987]
[1740436016612,0.04610864,147.2,147.17,0.04345299]
[1740436016910,16.93795763,147.28,147.2,46.00454987]
[1740436017118,15.58,147.28,147.25,46.00454987]
[1740436017512,15.62631778,147.28,147.25,0.04717816]
[1740436018122,15.62631778,147.28,147.04,17.11463571]
[1740436018421,15.58,147.28,147.19,46.00454987]
[1740436018625,22.3711,147.28,147.19,46.00454987]
[1740436018817,15.58,147.28,147.04,1.53463571]
[1740436019027,15.58,147.28,147.18,46.00454987]
[1740436019315,0.04763172,147.24,147.17,46.00454987]
[1740436019522,4.32748942,147.27,147.22,0.04909305]
[1740436019714,0.0444367,147.22,147.19,46.00454987]
[1740436019914,16.93795763,147.28,147.04,1.53463571]
[1740436020123,0.04464981,147.22,147.19,0.04697334]
[1740436020321,6.7941,147.22,147.15,46.00454987]
[1740436020517,4.2064,147.21,147.04,1.53463571]
[1740436020713,4.2064,147.21,147.14,46.00454987]
[1740436020912,6.7951,147.2,147.13,46.00454987]
[1740436021422,0.04694433,147.18,147.15,0.04563332]
[1740436021623,15.62694433,147.18,147.15,0.04563332]
[1740436021817,15.58,147.18,147.04,1.53463571]
[1740436022019,15.62986782,147.18,147.15,0.0433113]
[1740436022216,15.58,147.18,147.04,1.53463571]
[1740436022419,15.63153456,147.18,147.15,0.04842448]
[1740436022617,6.7969,147.16,147.09,46.00454987]
[1740436022925,15.58,147.18,147.08,46.00454987]
[1740436023122,6.7968,147.16,147.08,46.00454987]
[1740436023324,3.971,147.15,147.04,1.53463571]
[1740436023528,3.971,147.15,146.96,4.1865]
[1740436023725,0.05134966,147.11,147.08,0.03014446]
[1740436024024,6.7998,147.09,147.02,46.00454987]
[1740436024323,194.0,147.13,146.91,177.78]
[1740436024525,195.35943447,147.12,146.91,177.78]
[1740436024819,197.06056769,147.11,146.99,46.00454987]
[1740436025021,0.04420657,147.03,146.98,46.00454987]
[1740436025225,15.58,147.09,146.9,4.1865]
[1740436025427,15.58,147.09,147.06,46.00454987]
[1740436025624,15.58,147.09,147.08,46.00454987]
[1740436026020,15.58,147.09,146.9,195.2779]
[1740436026226,15.58,147.09,147.03,46.00454987]
[1740436026422,15.58,147.09,147.02,46.00454987]
[1740436026723,6.8011,147.07,146.9,4.2779]
[1740436026924,0.04426238,147.07,146.99,46.00454987]
[1740436027119,15.58,147.09,146.99,46.00454987]
[1740436027319,0.04485814,147.04,147.0,46.00454987]
[1740436027519,15.58,147.09,147.0,46.00454987]
[1740436027726,0.04502501,147.03,146.9,4.2779]
[1740436027927,0.04502501,147.03,147.0,46.00454987]
[1740436028125,4.105,147.08,147.0,46.00454987]
[1740436028321,0.05130016,147.03,146.9,4.2779]
[1740436028522,0.05130016,147.03,147.0,46.00454987]
[1740436028727,4.105,147.08,147.0,46.00454987]
[1740436028919,0.05139691,147.03,146.9,4.2779]
[1740436029125,15.58,147.09,147.07,46.00454987]
[1740436029323,15.58,147.09,147.06,46.00454987]
[1740436029523,1.3596193,147.1,147.06,46.00454987]
[1740436029731,3.8213,147.13,147.09,46.00454987]
[1740436029927,371.66350146,147.26,146.94,177.94]
[1740436030127,7.8254,147.2,147.14,46.00454987]
[1740436030328,6.7956,147.18,147.11,46.00454987]
[1740436030529,7.8254,147.2,147.11,46.00454987]
[1740436030725,0.05152541,147.16,147.11,46.00454987]
[1740436031127,0.05152541,147.16,147.14,0.0433131]
[1740436031537,15.58,147.18,147.03,4.0203]
[1740436031734,0.05001333,147.16,147.14,46.05424181]
[1740436031937,0.05001333,147.16,147.15,46.00454987]
[1740436032232,15.58,147.19,147.03,4.0203]
[1740436032434,0.04781152,147.17,147.14,0.04611192]
[1740436032829,15.58,147.19,147.03,4.0203]
[1740436033028,0.04890742,147.17,147.14,0.04986386]
[1740436033437,15.58,147.19,146.94,179.30109976]
[1740436033631,0.04706956,147.17,147.06,46.00454987]
[1740436033834,6.8003,147.08,146.95,3.9467]
[1740436034039,15.58,147.08,147.02,46.00454987]
[1740436034449,15.58,147.08,146.9,0.0914]
[1740436034739,0.04631874,147.06,146.97,46.00454987]
[1740436034945,4.2029,147.07,146.98,46.00454987]
[1740436035242,0.05210074,147.03,146.97,46.00454987]
[1740436035553,4.2029,147.07,146.97,46.00454987]
[1740436035838,4.2029,147.07,146.85,3.9467]
[1740436036040,6.8048,146.99,146.96,46.00454987]
[1740436036244,4.2029,147.07,146.96,46.00454987]
[1740436036443,1.35998912,147.06,146.86,0.0687]
[1740436036641,6.806,146.96,146.94,46.00454987]